fUST/lending_fUST_20250301
["ID","MTS","AMOUNT","RATE_DAILY","PERIOD"]
[354918322,1740816650471,-500.0,0.0003315,2]
[354918323,1740816650481,-500.0,0.0003315,2]
[354918324,1740816650491,-560.09,0.0003315,2]
[354918325,1740816650501,-500.0,0.0003315,2]
[354918326,1740816650511,-500.0,0.0003315,2]
[354918327,1740816650520,-502.9266679,0.0003315,2]
[354918328,1740816650530,-500.0,0.0003315,2]
[354918329,1740816650539,-500.0,0.0003315,2]
[354918330,1740816650549,-500.0,0.0003315,2]
[354918331,1740816650560,-1823.66,0.0003315,2]
[354918332,1740816650570,-500.0,0.0003315,2]
[354918333,1740816650581,-1306.74,0.0003315,2]
[354918334,1740816650591,-500.0,0.0003315,2]
[354918335,1740816650602,-500.0,0.0003315,2]
[354918336,1740816650617,-500.0,0.0003315,2]
[354918337,1740816650627,-500.0,0.0003315,2]
[354918338,1740816650637,-500.0,0.0003315,2]
[354918339,1740816650648,-500.0,0.0003315,2]
[354918340,1740816650658,-500.0,0.0003315,2]
[354918341,1740816650668,-500.0,0.0003315,2]
[354918342,1740816650678,-500.0,0.0003315,2]
[354918343,1740816650689,-785.07,0.0003315,2]
[354918344,1740816650700,-500.0,0.0003315,2]
[354918345,1740816650711,-500.0,0.0003315,2]
[354918346,1740816650721,-500.0,0.0003315,2]
[354918347,1740816650731,-500.0,0.0003315,2]
[354918348,1740816650740,-500.0,0.0003315,2]
[354918349,1740816650750,-500.0,0.0003315,2]
[354918350,1740816650760,-500.0,0.0003315,2]
[354918351,1740816650770,-1597.11,0.0003315,2]
[354918352,1740816650780,-1032.26,0.0003315,2]
[354918353,1740816650791,-500.0,0.0003315,2]
[354918354,1740816650800,-500.0,0.0003315,2]
[354918355,1740816650810,-1000.0,0.0003315,2]
[354918356,1740816650821,-500.0,0.0003315,2]
[354918357,1740816650831,-500.0,0.0003315,2]
[354918358,1740816650840,-549.38,0.0003315,2]
[354918359,1740816650850,-500.0,0.0003315,2]
[354918360,1740816650860,-500.0,0.0003315,2]
[354918361,1740816650870,-500.0,0.0003315,2]
[354918362,1740816650879,-726.38,0.0003315,2]
[354918363,1740816650891,-500.0,0.0003315,2]
[354918364,1740816650902,-500.0,0.0003315,2]
[354918365,1740816650911,-968.85,0.0003315,2]
[354918366,1740816650921,-406.61527626,0.0003315,2]
[354918367,1740816650932,-500.0,0.0003315,2]
[354918368,1740816650941,-500.0,0.0003315,2]
[354918369,1740816650952,-1001.33,0.0003315,2]
[354918370,1740816650962,-946.43,0.0003315,2]
[354918371,1740816650971,-500.0,0.0003315,2]
[354918372,1740816650981,-500.0,0.0003315,2]
[354918373,1740816650991,-500.0,0.0003315,2]
[354918374,1740816651001,-500.0,0.0003315,2]
[354918375,1740816651011,-500.0,0.0003315,2]
[354918376,1740816651020,-500.0,0.0003315,2]
[354918377,1740816651030,-500.0,0.0003315,2]
[354918378,1740816651041,-500.0,0.0003315,2]
[354918379,1740816651050,-767.54,0.0003315,2]
[354918380,1740816651060,-500.0,0.0003315,2]
[354918381,1740816651069,-500.0,0.0003315,2]
[354918382,1740816651080,-500.0,0.0003315,2]
[354918383,1740816651089,-552.81,0.0003315,2]
[354918384,1740816651099,-364.97873975,0.0003315,2]
[354918385,1740816651108,-500.0,0.0003315,2]
[354918386,1740816651119,-617.75403216,0.0003315,2]
[354918387,1740816651130,-500.0,0.0003315,2]
[354918388,1740816651140,-500.0,0.0003315,2]
[354918389,1740816651151,-500.0,0.0003315,2]
[354918390,1740816651160,-500.0,0.0003315,2]
[354918391,1740816651170,-500.0,0.0003315,2]
[354918392,1740816651180,-200.0,0.0003315,2]
[354918393,1740816651190,-500.0,0.0003315,2]
[354918394,1740816651199,-783.67,0.0003315,2]
[354918395,1740816651209,-502.62,0.0003315,2]
[354918396,1740816651219,-500.0,0.0003315,2]
[354918397,1740816651228,-500.0,0.0003315,2]
[354918398,1740816651238,-500.0,0.0003315,2]
[354918399,1740816651247,-500.0,0.0003315,2]
[354918400,1740816651257,-500.0,0.0003315,2]
[354918401,1740816651268,-500.0,0.0003315,2]
[354918402,1740816651280,-506.29,0.0003315,2]
[354918403,1740816651290,-886.25,0.0003315,2]
[354918404,1740816651299,-500.0,0.0003315,2]
[354918405,1740816651309,-554.61,0.0003315,2]
[354918406,1740816651319,-500.0,0.0003315,2]
[354918407,1740816651331,-500.0,0.0003315,2]
[354918408,1740816651342,-646.36,0.0003315,2]
[354918409,1740816651352,-500.0,0.0003315,2]
[354918410,1740816651362,-500.0,0.0003315,2]
[354918411,1740816651372,-500.0,0.0003315,2]
[354918412,1740816651380,-500.0,0.0003315,2]
[354918413,1740816651390,-500.0,0.0003315,2]
[354918414,1740816651400,-300.0,0.0003315,120]
[354918415,1740816651410,-500.0,0.0003315,2]
[354918416,1740816651419,-682.32,0.0003315,2]
[354918417,1740816651429,-500.0,0.0003315,2]
[354918418,1740816651438,-500.0,0.0003315,2]
[354918419,1740816651449,-500.0,0.0003315,2]
[354918420,1740816651458,-500.0,0.0003315,2]
[354918421,1740816651468,-500.0,0.0003315,2]
[354918422,1740816651479,-837.21,0.0003315,2]
[354918423,1740816651489,-500.0,0.0003315,2]
[354918424,1740816651498,-500.0,0.0003315,2]
[354918425,1740816651507,-503.66122976,0.0003315,2]
[354918426,1740816651517,-1116.13,0.0003315,2]
[354918427,1740816651528,-500.0,0.0003315,2]
[354918428,1740816651538,-500.0,0.0003315,2]
[354918429,1740816651548,-500.0,0.0003315,2]
[354918430,1740816651557,-500.0,0.0003315,2]
[354918431,1740816651567,-500.0,0.0003315,2]
[354918432,1740816651578,-719.87,0.0003315,2]
[354918433,1740816651587,-570.65978087,0.0003315,2]
[354918434,1740816651597,-500.0,0.0003315,2]
[354918435,1740816651610,-502.81663997,0.0003315,2]
[354918436,1740816651620,-500.0,0.0003315,2]
[354918437,1740816651630,-500.0,0.0003315,2]
[354918438,1740816651640,-500.0,0.0003315,2]
[354918439,1740816651651,-500.0,0.0003315,2]
[354918440,1740816651660,-500.0,0.0003315,2]
[354918441,1740816651669,-500.0,0.0003315,2]
[354918442,1740816651681,-529.07032161,0.0003315,2]
[354918443,1740816651692,-500.0,0.0003315,2]
[354918444,1740816651702,-500.0,0.0003315,2]
[354918445,1740816651712,-500.0,0.0003315,2]
[354918446,1740816651722,-500.0,0.0003315,2]
[354918447,1740816651732,-1217.31,0.0003315,2]
[354918448,1740816651743,-500.0,0.0003315,2]
[354918449,1740816651753,-500.0,0.0003315,2]
[354918450,1740816651766,-464.05927202,0.0003315,2]
[354918451,1740816651776,-500.0,0.0003315,2]
[354918452,1740816651786,-500.0,0.0003315,2]
[354918453,1740816651796,-500.0,0.0003315,2]
[354918454,1740816651806,-502.32249601,0.0003315,2]
[354918455,1740816651815,-500.0,0.0003315,2]
[354918456,1740816651825,-837.24,0.0003315,2]
[354918457,1740816651835,-1121.19,0.0003315,2]
[354918458,1740816651844,-500.0,0.0003315,2]
[354918459,1740816651854,-1054.7,0.0003315,2]
[354918460,1740816651865,-500.0,0.0003315,2]
[354918461,1740816651876,-789.46,0.0003315,2]
[354918462,1740816651886,-500.0,0.0003315,2]
[354918463,1740816651896,-689.02,0.0003315,2]
[354918464,1740816651906,-500.0,0.0003315,2]
[354918465,1740816651916,-666.0,0.0003315,2]
[354918466,1740816651926,-500.0,0.0003315,120]
[354918467,1740816651936,-500.0,0.0003315,2]
[354918468,1740816651946,-500.0,0.0003315,2]
[354918469,1740816651957,-500.0,0.0003315,2]
[354918470,1740816651968,-500.0,0.0003315,2]
[354918471,1740816651977,-571.16,0.0003315,2]
[354918472,1740816651987,-500.0,0.0003315,2]
[354918473,1740816651997,-500.0,0.0003315,2]
[354918474,1740816652007,-500.0,0.0003315,2]
[354918475,1740816652016,-500.0,0.0003315,2]
[354918476,1740816652026,-500.0,0.0003315,2]
[354918477,1740816652036,-500.0,0.0003315,2]
[354918478,1740816652046,-500.0,0.0003315,2]
[354918479,1740816652056,-1338.95,0.0003315,2]
[354918480,1740816652065,-828.71,0.0003315,2]
[354918481,1740816652076,-500.0,0.0003315,2]
[354918482,1740816652086,-500.0,0.0003315,2]
[354918483,1740816652096,-500.0,0.0003315,2]
[354918484,1740816652106,-500.0,0.0003315,2]
[354918485,1740816652116,-511.05097749,0.0003315,2]
[354918486,1740816652126,-500.0,0.0003315,2]
[354918487,1740816652136,-500.0,0.0003315,2]
[354918488,1740816652146,-500.0,0.0003315,2]
[354918489,1740816652158,-924.92,0.0003315,2]
[354918490,1740816652168,-500.0,0.0003315,2]
[354918491,1740816652178,-151.0,0.0003315,7]
[354918492,1740816652187,-550.69,0.0003315,2]
[354918493,1740816652197,-500.0,0.0003315,2]
[354918494,1740816652207,-7812.96,0.0003315,2]
[354918495,1740816652217,-163.678753,0.0003315,14]
[354918496,1740816652227,-500.0,0.0003315,2]
[354918497,1740816652236,-500.0,0.0003315,2]
[354918498,1740816652247,-163.678753,0.0003315,14]
[354918499,1740816652258,-771.03,0.0003315,2]
[354918500,1740816652268,-500.0,0.0003315,2]
[354918501,1740816652278,-151.0,0.0003315,14]
[354918502,1740816652288,-500.0,0.0003315,2]
[354918503,1740816652298,-500.0,0.0003315,2]
[354918504,1740816652308,-500.0,0.0003315,2]
[354918505,1740816652319,-500.0,0.0003315,2]
[354918506,1740816652329,-500.0,0.0003315,2]
[354918507,1740816652340,-12566.73,0.0003315,2]
[354918508,1740816652352,-500.0,0.0003315,2]
[354918509,1740816652362,-796.46,0.0003315,2]
[354918510,1740816652372,-790.65,0.0003315,2]
[354918511,1740816652382,-8664.3,0.0003315,2]
[354918512,1740816652392,-500.0,0.0003315,2]
[354918513,1740816652402,-500.0,0.0003315,2]
[354918514,1740816652412,-669.02,0.0003315,2]
[354918515,1740816652422,-500.0,0.0003315,2]
[354918516,1740816652432,-500.0,0.0003315,2]
[354918517,1740816652442,-1470.38,0.0003315,2]
[354918518,1740816652452,-500.0,0.0003315,2]
[354918519,1740816652462,-1754.19,0.0003315,2]
[354918520,1740816652472,-1470.13,0.0003315,2]
[354918521,1740816652482,-500.0,0.0003315,2]
[354918522,1740816652492,-500.0,0.0003315,2]
[354918523,1740816652502,-501.68550757,0.0003315,2]
[354918524,1740816652512,-500.0,0.0003315,2]
[354918525,1740816652522,-500.0,0.0003315,2]
[354918526,1740816652532,-1691.51,0.0003315,2]
[354918527,1740816652542,-1924.06,0.0003315,2]
[354918528,1740816652552,-2321.41,0.0003315,2]
[354918529,1740816652562,-616.87498064,0.0003315,2]
[354918530,1740816652572,-500.0,0.0003315,2]
[354918531,1740816652582,-500.0,0.0003315,2]
[354918532,1740816652591,-306.26038059,0.0003315,2]
[354918533,1740816652601,-500.0,0.0003315,2]
[354918534,1740816652614,-500.0,0.0003315,2]
[354918535,1740816652624,-500.0,0.0003315,2]
[354918536,1740816652634,-500.0,0.0003315,2]
[354918537,1740816652645,-1054.46,0.0003315,2]
[354918538,1740816652655,-222.65696791,0.0003315,2]
[354918539,1740816652664,-500.0,0.0003315,2]
[354918540,1740816652675,-500.0,0.0003315,2]
[354918541,1740816652685,-2219.02,0.0003315,2]
[354918542,1740816652696,-329.816286,0.0003315,14]
[354918543,1740816652706,-500.0,0.0003315,2]
[354918544,1740816652716,-500.0,0.0003315,2]
[354918545,1740816652726,-500.0,0.0003315,2]
[354918546,1740816652738,-329.816286,0.0003315,14]
[354918547,1740816652748,-1549.23,0.0003315,2]
[354918548,1740816652758,-500.0,0.0003315,2]
[354918549,1740816652768,-500.0,0.0003315,2]
[354918550,1740816652779,-904.19,0.0003315,2]
[354918551,1740816652788,-500.0,0.0003315,2]
[354918552,1740816652799,-500.0,0.0003315,2]
[354918553,1740816652808,-633.29,0.0003315,2]
[354918554,1740816652818,-500.0,0.0003315,2]
[354918555,1740816652828,-1509.31,0.0003315,2]
[354918556,1740816652837,-500.0,0.0003315,2]
[354918557,1740816652847,-500.0,0.0003315,2]
[354918558,1740816652857,-500.0,0.0003315,2]
[354918559,1740816652867,-500.0,0.0003315,2]
[354918560,1740816652877,-500.0,0.0003315,2]
[354918561,1740816652887,-992.03,0.0003315,2]
[354918562,1740816652896,-1369.22,0.0003315,2]
[354918563,1740816652907,-500.0,0.0003315,2]
[354918564,1740816652916,-500.0,0.0003315,2]
[354918565,1740816652926,-500.0,0.0003315,2]
[354918566,1740816652936,-500.0,0.0003315,2]
[354918567,1740816652946,-500.0,0.0003315,2]
[354918568,1740816652956,-583.1,0.0003315,2]
[354918569,1740816652966,-2061.38,0.0003315,2]
[354918570,1740816652975,-500.0,0.0003315,2]
[354918571,1740816652985,-1784.46,0.0003315,2]
[354918572,1740816652995,-599.27,0.0003315,2]
[354918573,1740816653005,-500.0,0.0003315,2]
[354918574,1740816653015,-2432.42,0.0003315,2]
[354918575,1740816653024,-500.0,0.0003315,2]
[354918576,1740816653034,-500.0,0.0003315,2]
[354918577,1740816653044,-500.0,0.0003315,2]
[354918578,1740816653054,-500.0,0.0003315,2]
[354918579,1740816653065,-500.0,0.0003315,2]
[354918580,1740816653074,-176.03218,0.0003315,14]
[354918581,1740816653084,-712.18,0.0003315,2]
[354918582,1740816653094,-1431.73,0.0003315,2]
[354918583,1740816653104,-500.0,0.0003315,2]
[354918584,1740816653114,-176.03218,0.0003315,14]
[354918585,1740816653124,-500.0,0.0003315,2]
[354918586,1740816653133,-500.0,0.0003315,2]
[354918587,1740816653144,-529.68,0.0003315,2]
[354918588,1740816653154,-500.0,0.0003315,2]
[354918589,1740816653163,-500.0,0.0003315,2]
[354918590,1740816653173,-1503.43,0.0003315,2]
[354918591,1740816653183,-500.0,0.0003315,2]
[354918592,1740816653192,-500.0,0.0003315,2]
[354918593,1740816653202,-208633.38,0.0003315,2]
[354918594,1740816653212,-500.0,0.0003315,2]
[354918595,1740816653222,-500.0,0.0003315,2]
[354918596,1740816653231,-234.83147696,0.0003315,2]
[354918597,1740816653241,-500.0,0.0003315,2]
[354918598,1740816653251,-500.0,0.0003315,2]
[354918599,1740816653261,-500.0,0.0003315,2]
[354918600,1740816653271,-1141.65,0.0003315,2]
[354918601,1740816653281,-500.0,0.0003315,2]
[354918602,1740816653291,-500.0,0.0003315,2]
[354918603,1740816653302,-555.8,0.0003315,2]
[354918604,1740816653316,-501.58502566,0.0003315,2]
[354918605,1740816653325,-500.0,0.0003315,2]
[354918606,1740816653335,-500.0,0.0003315,2]
[354918607,1740816653345,-1481.27,0.0003315,2]
[354918608,1740816653355,-500.0,0.0003315,2]
[354918609,1740816653364,-525.06,0.0003315,2]
[354918610,1740816653374,-500.0,0.0003315,2]
[354918611,1740816653383,-500.0,0.0003315,2]
[354918612,1740816653393,-975.003197,0.0003315,14]
[354918613,1740816653403,-4058.73,0.0003315,2]
[354918614,1740816653412,-504.67756122,0.0003315,2]
[354918615,1740816653422,-809.51,0.0003315,2]
[354918616,1740816653433,-573.33,0.0003315,2]
[354918617,1740816653444,-500.0,0.0003315,2]
[354918618,1740816653455,-500.0,0.0003315,2]
[354918619,1740816653465,-500.0,0.0003315,2]
[354918620,1740816653474,-500.0,0.0003315,2]
[354918621,1740816653484,-975.003197,0.0003315,14]
[354918622,1740816653494,-500.0,0.0003315,2]
[354918623,1740816653503,-3430.22,0.0003315,2]
[354918624,1740816653513,-991.53,0.0003315,2]
[354918625,1740816653523,-1200.38,0.0003315,2]
[354918626,1740816653532,-500.0,0.0003315,2]
[354918627,1740816653542,-655.42,0.0003315,2]
[354918628,1740816653552,-929.42,0.0003315,2]
[354918629,1740816653562,-472.71977151,0.0003315,2]
[354918630,1740816653571,-500.0,0.0003315,2]
[354918631,1740816653581,-500.0,0.0003315,2]
[354918632,1740816653591,-2061.78,0.0003315,2]
[354918633,1740816653600,-500.0,0.0003315,2]
[354918634,1740816653614,-500.0,0.0003315,2]
[354918635,1740816653624,-500.0,0.0003315,2]
[354918636,1740816653634,-500.0,0.0003315,2]
[354918637,1740816653644,-177.918737,0.0003315,14]
[354918638,1740816653654,-973.21,0.0003315,2]
[354918639,1740816653664,-1750.48,0.0003315,2]
[354918640,1740816653674,-1109.52,0.0003315,5]
[354918641,1740816653684,-1493.04,0.0003315,2]
[354918642,1740816653695,-500.0,0.0003315,2]
[354918643,1740816653704,-500.0,0.0003315,2]
[354918644,1740816653714,-500.0,0.0003315,2]
[354918645,1740816653724,-16526.07,0.0003315,2]
[354918646,1740816653734,-500.0,0.0003315,2]
[354918647,1740816653993,-1483.21,0.0003315,2]
[354918648,1740816654003,-7401.14,0.0003315,2]
[354918649,1740816654012,-500.0,0.0003315,2]
[354918650,1740816654023,-500.0,0.0003315,2]
[354918651,1740816654032,-505.59154182,0.0003315,2]
[354918652,1740816654042,-500.0,0.0003315,2]
[354918653,1740816654052,-11927.78,0.0003315,2]
[354918654,1740816654061,-500.0,0.0003315,2]
[354918655,1740816654071,-500.0,0.0003315,2]
[354918656,1740816654080,-1394.29,0.0003315,2]
[354918657,1740816654089,-500.0,0.0003315,2]
[354918658,1740816654099,-579.339974,0.0003315,14]
[354918659,1740816654108,-500.0,0.0003315,2]
[354918660,1740816654118,-634.44,0.0003315,2]
[354918661,1740816654128,-151.0,0.0003315,14]
[354918662,1740816654137,-500.0,0.0003315,2]
[354918663,1740816654146,-500.0,0.0003315,2]
[354918664,1740816654156,-500.0,0.0003315,2]
[354918665,1740816654165,-500.0,0.0003315,2]
[354918666,1740816654175,-500.0,0.0003315,2]
[354918667,1740816654184,-247.38,0.0003315,2]
[354918668,1740816654194,-1822.15,0.0003315,2]
[354918669,1740816654204,-579.339974,0.0003315,14]
[354918670,1740816654213,-575.15,0.0003315,2]
[354918671,1740816654223,-1040.16,0.0003315,2]
[354918672,1740816654234,-500.0,0.0003315,2]
[354918673,1740816654244,-500.0,0.0003315,2]
[354918674,1740816654254,-413.93583879,0.0003315,2]
[354918675,1740816654264,-177.727259,0.0003315,14]
[354918676,1740816654274,-500.0,0.0003315,2]
[354918677,1740816654284,-173.876937,0.0003315,14]
[354918678,1740816654294,-177.727259,0.0003315,14]
[354918679,1740816654303,-500.0,0.0003315,2]
[354918680,1740816654313,-173.876937,0.0003315,14]
[354918681,1740816654322,-500.0,0.0003315,2]
[354918682,1740816654331,-504.4,0.0003315,2]
[354918683,1740816654342,-500.0,0.0003315,2]
[354918684,1740816654352,-535.34,0.0003315,2]
[354918685,1740816654361,-500.0,0.0003315,2]
[354918686,1740816654371,-521.32,0.0003315,2]
[354918687,1740816654381,-500.0,0.0003315,2]
[354918688,1740816654390,-506.23266891,0.0003315,2]
[354918689,1740816654400,-514.06547718,0.0003315,2]
[354918690,1740816654409,-753.69,0.0003315,2]
[354918691,1740816654419,-271.87457427,0.0003315,2]
[354918692,1740816654429,-580.95329574,0.0003315,2]
[354918693,1740816654438,-395.2626657,0.0003315,2]
[354918694,1740816654448,-1806.68,0.0003315,2]
[354918695,1740816654459,-1002.08,0.0003315,2]
[354918696,1740816654469,-2445.83,0.0003315,2]
[354918697,1740816654478,-758.83,0.0003315,2]
[354918698,1740816654487,-6330.61,0.0003315,2]
[354918699,1740816654497,-2096.33,0.0003315,2]
[354918700,1740816654507,-505.9774851,0.0003315,2]
[354918701,1740816654517,-6428.72,0.0003315,2]
[354918702,1740816654526,-151.0,0.0003315,14]
[354918703,1740816654536,-500.0,0.0003315,2]
[354918704,1740816654546,-934.99,0.0003315,2]
[354918705,1740816654555,-555.36,0.0003315,2]
[354918706,1740816654566,-283.187842,0.0003315,14]
[354918707,1740816654576,-1478.12,0.0003315,2]
[354918708,1740816654586,-1137.59,0.0003315,2]
[354918709,1740816654596,-862.75,0.0003315,2]
[354918710,1740816654611,-38327.56,0.0003315,2]
[354918711,1740816654621,-999.7,0.0003315,2]
[354918712,1740816654630,-1881.32,0.0003315,2]
[354918713,1740816654639,-502.83082151,0.0003315,2]
[354918714,1740816654651,-500.0,0.0003315,2]
[354918715,1740816654660,-500.0,0.0003315,2]
[354918716,1740816654670,-500.0,0.0003315,2]
[354918717,1740816654681,-500.0,0.0003315,2]
[354918718,1740816654691,-1334.86,0.0003315,2]
[354918719,1740816654700,-500.0,0.0003315,2]
[354918720,1740816654710,-500.0,0.0003315,2]
[354918721,1740816654720,-500.0,0.0003315,2]
[354918722,1740816654729,-1017.21,0.0003315,2]
[354918723,1740816654739,-675.99,0.0003315,2]
[354918724,1740816654748,-552.49,0.0003315,2]
[354918725,1740816654758,-500.0,0.0003315,2]
[354918726,1740816654768,-3750.33,0.0003315,2]
[354918727,1740816654777,-500.0,0.0003315,2]
[354918728,1740816654786,-500.0,0.0003315,2]
[354918729,1740816654795,-500.0,0.0003315,2]
[354918730,1740816654804,-1192.559753,0.0003315,14]
[354918731,1740816654813,-682.9,0.0003315,2]
[354918732,1740816654823,-500.0,0.0003315,2]
[354918733,1740816654832,-500.0,0.0003315,2]
[354918734,1740816654841,-500.0,0.0003315,2]
[354918735,1740816654850,-151.0,0.0003315,14]
[354918736,1740816654859,-1314.05,0.0003315,2]
[354918737,1740816654869,-1192.559753,0.0003315,14]
[354918738,1740816654879,-500.0,0.0003315,2]
[354918739,1740816654889,-500.0,0.0003315,2]
[354918740,1740816654899,-500.0,0.0003315,2]
[354918741,1740816654911,-1704.73,0.0003315,2]
[354918742,1740816654921,-500.0,0.0003315,2]
[354918743,1740816654931,-531.81,0.0003315,2]
[354918744,1740816654942,-500.0,0.0003315,2]
[354918745,1740816654952,-500.0,0.0003315,2]
[354918746,1740816654961,-500.0,0.0003315,2]
[354918747,1740816654971,-2614.44,0.0003315,2]
[354918748,1740816654980,-500.0,0.0003315,2]
[354918749,1740816654990,-979.79,0.0003315,2]
[354918750,1740816655000,-500.0,0.0003315,2]
[354918751,1740816655010,-1384.56,0.0003315,2]
[354918752,1740816655022,-500.0,0.00033173,5]
[354918753,1740816655031,-500.0,0.00033173,5]
[354918754,1740816655042,-500.0,0.00033173,5]
[354918755,1740816655051,-384.39116885,0.00033173,5]
[354918756,1740816655061,-500.0,0.00033173,5]
[354918757,1740816655071,-500.0,0.00033173,3]
[354918758,1740816655081,-150.86461303,0.00033173,5]
[354918759,1740816655090,-500.0,0.00033173,5]
[354918760,1740816655100,-160.0,0.00033173,5]
[354918761,1740816655110,-150.99911135,0.00033173,5]
[354918762,1740816655121,-301.99350878,0.00033173,5]
[354918763,1740816655132,-166.48973665,0.00033173,5]
[354918764,1740816655141,-500.0,0.00033173,5]
[354918765,1740816655151,-300.20962099,0.00033173,5]
[354918766,1740816655161,-500.0,0.00033173,5]
[354918767,1740816655170,-500.0,0.00033173,5]
[354918768,1740816655180,-500.0,0.00033173,5]
[354918769,1740816655189,-500.0,0.00033173,5]
[354918770,1740816655199,-500.0,0.00033173,5]
[354918771,1740816655208,-500.0,0.00033173,5]
[354918772,1740816655218,-501.75957197,0.00033173,2]
[354918773,1740816655227,-500.64829221,0.00033173,5]
[354918774,1740816655236,-511.26437518,0.00033173,5]
[354918775,1740816655246,-500.0,0.00033173,5]
[354918776,1740816655255,-500.0,0.00033173,5]
[354918777,1740816655264,-500.0,0.00033173,5]
[354918778,1740816655274,-500.0,0.00033173,5]
[354918779,1740816655284,-500.0,0.00033173,5]
[354918780,1740816655294,-503.42715993,0.00033173,5]
[354918781,1740816655304,-500.0,0.00033173,5]
[354918782,1740816655314,-391.67349365,0.00033173,5]
[354918783,1740816655324,-500.0,0.00033173,5]
[354918784,1740816655333,-500.0,0.00033173,5]
[354918785,1740816655342,-500.0,0.00033173,5]
[354918786,1740816655352,-500.0,0.00033173,5]
[354918787,1740816655361,-367.80974713,0.00033173,5]
[354918788,1740816655370,-500.0,0.00033173,5]
[354918789,1740816655380,-500.0,0.00033173,5]
[354918790,1740816655389,-500.0,0.00033173,5]
[354918791,1740816655399,-500.0,0.00033173,5]
[354918792,1740816655408,-162.65928204,0.00033173,5]
[354918793,1740816655419,-500.0,0.00033173,5]
[354918794,1740816655428,-500.0,0.00033173,5]
[354918795,1740816655438,-601.26755221,0.00033173,5]
[354918796,1740816655448,-500.0,0.00033173,2]
[354918797,1740816655457,-163.75696149,0.00033173,5]
[354918798,1740816655468,-500.0,0.00033173,5]
[354918799,1740816655477,-500.0,0.00033173,5]
[354918800,1740816655486,-500.0,0.00033173,5]
[354918801,1740816655496,-500.0,0.00033173,5]
[354918802,1740816655506,-500.0,0.00033173,5]
[354918803,1740816655515,-501.82626897,0.00033173,5]
[354918804,1740816655525,-500.0,0.00033173,5]
[354918805,1740816655536,-500.0,0.00033173,2]
[354918806,1740816655546,-1000.0,0.00033186,2]
[354918807,1740816655556,-28123.12364839,0.000332,30]
[354918808,1740816656670,-10836.9858922,0.000332,30]
[354918809,1740816657456,-14.28184123,0.00032866,3]
[354918810,1740816658522,-436.76815877,0.00032866,3]
[354918811,1740816658532,-500.0,0.00032876,2]
[354918812,1740816658542,-500.0,0.00032876,2]
[354918813,1740816658552,-56.41649764,0.00032876,2]
[354918814,1740816721297,150.0,0.000253,14]
[354918815,1740816723029,150.0,0.00022082,14]
[354918816,1740816723370,150.0,0.00022082,14]
[354918817,1740816733274,13949.78579218,0.00026,3]
[354918822,1740816958131,-14148.13571503,0.0002593,2]
[354918823,1740816958155,-5674.82602783,0.00026,3]
[354918824,1740816970606,250.0,0.000297,30]
[354918825,1740816971087,250.0,0.000277,30]